[Event "Turkish Cup 2024"]
[Site "Denizli"]
[Date "2024.08.01"]
[Round "4"]
[White "Tirpan, Ceren"]
[Black "Nazli, Sertan"]
[Result "1-0"]
[ECO "A29"]
[WhiteElo "1926"]
[BlackElo "1861"]
[Annotator "ChessBase"]
[PlyCount "137"]
[EventDate "2024.08.01"]
[EventType "swiss"]
[EventCountry "TUR"]
[SourceTitle "playchess.com"]
[Source "ChessBase"]
[SourceQuality "1"]
[TimeControl "5400+30"]

1. c4 {[%emt 0:01:00]} e5 {[%emt 0:01:00]} 2. Nc3 {[%emt 0:00:30]} Nf6 {[%emt 0:00:30]} 3. Nf3 {[%emt 0:00:00]} Nc6 {[%emt 0:00:00]} 4. g3 {[%emt 0:00:00]} d5 {[%emt 0:00:00]} 5. cxd5 {[%emt 0:00:00]} Nxd5 {[%emt 0:00:00]} 6. Bg2 {[%emt 0:00:00]} Nf6 {[%emt 0:00:00]} 7. O-O {[%emt 0:01:30]} h6 {[%emt 0:04:30]} 8. d3 {[%emt 0:05:30]} Bd6 {[%emt 0:03:30]} 9. b3 {[%emt 0:04:30]} O-O {[%emt 0:00:30]} 10. Bb2 {[%emt 0:00:30]} Bg4 {[%emt 0:11:30]} 11. Rc1 {[%emt 0:12:30]} Qd7 {[%emt 0:02:30]} 12. Ne4 {[%emt 0:05:30]} Nxe4 {[%emt 0:11:30]} 13. dxe4 {[%emt 0:00:30]} Qe7 {[%emt 0:02:30]} 14. Qc2 {[%emt 0:06:30]} Ba3 {[%emt 0:05:30]} 15. e3 {[%emt 0:17:30]} Rfd8 {[%emt 0:04:30]} 16. Nh4 {[%emt 0:06:30]} Bxb2 {[%emt 0:09:30]} 17. Qxb2 {[%emt 0:00:00]} Nb4 {[%emt 0:03:30]} 18. Rc3 {[%emt 0:08:00]} Rd7 {[%emt 0:06:30]} 19. a3 {[%emt 0:08:30]} Nc6 {[%emt 0:01:30]} 20. Nf5 {[%emt 0:01:30]} Qf8 {[%emt 0:05:30]} 21. h3 {[%emt 0:00:30]} Bh5 {[%emt 0:01:30]} 22. g4 {[%emt 0:00:30]} Bg6 {[%emt 0:00:30]} 23. Qc1 {[%emt 0:00:36]} a5 {[%emt 0:01:30]} 24. Bf3 {[%emt 0:01:50]} Rad8 {[%emt 0:01:30]} 25. Rd1 {[%emt 0:06:09]} Rxd1+ {[%emt 0:00:30]} 26. Bxd1 {[%emt 0:00:32]} Bxf5 {[%emt 0:00:30]} 27. exf5 {[%emt 0:00:19]} Rd6 {[%emt 0:05:00]} 28. Bf3 {[%emt 0:01:48]} Qd8 {[%emt 0:00:12]} 29. Kg2 {[%emt 0:00:13]} h5 {[%emt 0:01:55]} 30. Rc4 {[%emt 0:01:32]} hxg4 {[%emt 0:00:23]} 31. Rxg4 {[%emt 0:06:00]} Ne7 {[%emt 0:00:48]} 32. Qc3 {[%emt 0:01:44]} Nxf5 {[%emt 0:06:55]} 33. Qxe5 {[%emt 0:00:38]} Nh4+ {[%emt 0:00:41]} 34. Kg3 {[%emt 0:00:39]} Rg6 {[%emt 0:01:28]} 35. Be4 {[%emt 0:00:22]} Rxg4+ {[%emt 0:02:59]} 36. hxg4 {[%emt 0:00:06]} b6 {[%emt 0:00:59]} 37. Qd4 {[%emt 0:02:01]} Qe7 {[%emt 0:01:39]} 38. Qd5 {[%emt 0:00:17]} g5 {[%emt 0:01:34]} 39. f4 {[%emt 0:01:13]} gxf4+ {[%emt 0:00:52]} 40. exf4 {[%emt 0:00:06]} Kg7 {[%emt 0:01:00]} 41. g5 {[%emt 0:00:29]} Ng6 {[%emt 0:00:48]} 42. Kg4 {[%emt 0:00:28]} Nf8 {[%emt 0:03:08]} 43. Bd3 {[%emt 0:02:45]} Qe3 {[%emt 0:00:35]} 44. Qe5+ {[%emt 0:00:58]} Qxe5 {[%emt 0:00:30]} 45. fxe5 {[%emt 0:00:00]} Ne6 {[%emt 0:00:26]} 46. Be4 {[%emt 0:00:20]} Nc5 {[%emt 0:00:42]} 47. Bd5 {[%emt 0:00:05]} Kg6 {[%emt 0:00:20]} 48. b4 {[%emt 0:00:33]} axb4 {[%emt 0:00:38]} 49. axb4 {[%emt 0:00:05]} Na6 {[%emt 0:00:41]} 50. b5 {[%emt 0:00:30]} Nc5 {[%emt 0:00:00]} 51. Ba2 {[%emt 0:00:06]} Na4 {[%emt 0:00:44]} 52. Bb1+ {[%emt 0:00:35]} Kg7 {[%emt 0:00:07]} 53. Kf5 {[%emt 0:00:00]} Nc3 {[%emt 0:01:15]} 54. Bd3 {[%emt 0:00:00]} Nd5 {[%emt 0:00:07]} 55. e6 {[%emt 0:01:18]} fxe6+ {[%emt 0:00:46]} 56. Ke5 {[%emt 0:00:04]} Kf8 {[%emt 0:00:43]} 57. Bc4 {[%emt 0:00:11]} Ne7 {[%emt 0:00:00]} 58. Kf6 {[%emt 0:02:08]} c6 {[%emt 0:00:50]} 59. bxc6 {[%emt 0:00:06]} Nxc6 {[%emt 0:00:18]} 60. g6 {[%emt 0:00:06]} Ne7 {[%emt 0:00:20]} 61. g7+ {[%emt 0:00:17]} Kg8 {[%emt 0:00:52]} 62. Bxe6+ {[%emt 0:00:07]} Kh7 {[%emt 0:00:18]} 63. Kf7 {[%emt 0:00:09]} b5 {[%emt 0:00:22]} 64. Bf5+ {[%emt 0:00:40]} Kh6 {[%emt 0:00:12]} 65. Bd3 {[%emt 0:00:11]} b4 {[%emt 0:00:30]} 66. Bc2 {[%emt 0:00:00]} b3 {[%emt 0:01:03]} 67. Bxb3 {[%emt 0:00:00]} Kh7 {[%emt 0:00:43]} 68. Bc2+ {[%emt 0:00:13]} Kh6 {[%emt 0:00:00]} 69. Bb1 {[%emt 0:00:00]} 1-0

[Event "Turkish Cup 2024"]
[Site "Denizli"]
[Date "2024.08.01"]
[Round "4"]
[White "Demirag, Batuhan"]
[Black "Koseoglu, Omer Umut"]
[Result "1/2-1/2"]
[ECO "A09"]
[WhiteElo "1912"]
[BlackElo "1841"]
[Annotator "ChessBase"]
[PlyCount "53"]
[EventDate "2024.08.01"]
[EventType "swiss"]
[EventCountry "TUR"]
[SourceTitle "playchess.com"]
[Source "ChessBase"]
[SourceQuality "1"]
[TimeControl "5400+30"]

1. Nf3 {[%emt 0:01:00]} d5 {[%emt 0:01:00]} 2. c4 {[%emt 0:00:00]} d4 {[%emt 0:00:30]} 3. b4 {[%emt 0:00:00]} g5 {[%emt 0:00:30]} 4. Nxg5 {[%emt 0:03:30]} e5 {[%emt 0:00:30]} 5. h4 {[%emt 0:02:30]} h6 {[%emt 0:00:00]} 6. Nh3 {[%emt 0:00:30]} Qxh4 {[%emt 0:01:00]} 7. Qb3 {[%emt 0:06:30]} Ne7 {[%emt 0:09:30]} 8. g3 {[%emt 0:08:30]} Qe4 {[%emt 0:05:30]} 9. Rh2 {[%emt 0:02:30]} Qg6 {[%emt 0:01:30]} 10. Bg2 {[%emt 0:03:30]} Bg7 {[%emt 0:03:30]} 11. d3 {[%emt 0:01:30]} c6 {[%emt 0:05:30]} 12. Nd2 {[%emt 0:03:30]} f5 {[%emt 0:02:30]} 13. Bb2 {[%emt 0:02:30]} Nd7 {[%emt 0:03:30]} 14. O-O-O {[%emt 0:04:30]} Nf6 {[%emt 0:02:30]} 15. Rhh1 {[%emt 0:05:30]} Be6 {[%emt 0:02:30]} 16. Kb1 {[%emt 0:04:30]} O-O {[%emt 0:02:30]} 17. Rdg1 {[%emt 0:05:30]} Ng4 {[%emt 0:07:30]} 18. Nf1 {[%emt 0:10:30]} b5 {[%emt 0:06:30]} 19. f3 {[%emt 0:05:30]} bxc4 {[%emt 0:03:30]} 20. dxc4 {[%emt 0:00:30]} f4+ {[%emt 0:00:00]} 21. Ka1 {[%emt 0:00:30]} Ne3 {[%emt 0:00:00]} 22. Nxe3 {[%emt 0:00:30]} fxe3 {[%emt 0:00:30]} 23. f4 {[%emt 0:01:30]} Qf7 {[%emt 0:01:30]} 24. Qc2 {[%emt 0:03:30]} Bf5 {[%emt 0:01:30]} 25. Qb3 {[%emt 0:02:30]} Be6 {[%emt 0:00:30]} 26. Qc2 {[%emt 0:00:30]} Bf5 {[%emt 0:00:30]} 27. Qb3 {[%emt 0:00:30]} 1/2-1/2

[Event "Turkish Cup 2024"]
[Site "Denizli"]
[Date "2024.08.01"]
[Round "4"]
[White "Dirikolu, Deniz"]
[Black "Saltik, Suleyman"]
[Result "1-0"]
[ECO "B90"]
[WhiteElo "1911"]
[BlackElo "1776"]
[Annotator "ChessBase"]
[PlyCount "45"]
[EventDate "2024.08.01"]
[EventType "swiss"]
[EventCountry "TUR"]
[SourceTitle "playchess.com"]
[Source "ChessBase"]
[SourceQuality "1"]
[TimeControl "5400+30"]

1. e4 {[%emt 0:01:00]} c5 {[%emt 0:01:00]} 2. Nf3 {[%emt 0:01:30]} d6 {[%emt 0:00:30]} 3. d4 {[%emt 0:00:30]} cxd4 {[%emt 0:00:30]} 4. Nxd4 {[%emt 0:00:00]} Nf6 {[%emt 0:00:00]} 5. Nc3 {[%emt 0:00:00]} a6 {[%emt 0:00:00]} 6. Rg1 {[%emt 0:00:00]} e5 {[%emt 0:04:30]} 7. Nb3 {[%emt 0:00:00]} Be6 {[%emt 0:02:30]} 8. g4 {[%emt 0:00:00]} d5 {[%emt 0:09:30]} 9. exd5 {[%emt 0:01:00]} Nxd5 {[%emt 0:01:30]} 10. Nxd5 {[%emt 0:00:30]} Qxd5 {[%emt 0:05:30]} 11. Qxd5 {[%emt 0:00:30]} Bxd5 {[%emt 0:00:00]} 12. Be3 {[%emt 0:00:00]} Nc6 {[%emt 0:06:00]} 13. O-O-O {[%emt 0:00:00]} O-O-O {[%emt 0:00:30]} 14. Bb6 {[%emt 0:00:00]} Rd7 {[%emt 0:00:30]} 15. g5 {[%emt 0:00:00]} Bxb3 {[%emt 0:13:30]} 16. axb3 {[%emt 0:21:30]} Rxd1+ {[%emt 0:05:30]} 17. Kxd1 {[%emt 0:00:30]} Be7 {[%emt 0:01:30]} 18. Bc4 {[%emt 0:00:30]} Rf8 {[%emt 0:08:30]} 19. c3 {[%emt 0:01:30]} Bd8 {[%emt 0:00:30]} 20. Be3 {[%emt 0:01:30]} Kc7 {[%emt 0:05:30]} 21. Kc2 {[%emt 0:00:30]} f6 {[%emt 0:03:30]} 22. g6 {[%emt 0:00:30]} h5 {[%emt 0:03:30]} 23. Bh6 {[%emt 0:00:30]} 1-0

[Event "Turkish Cup 2024"]
[Site "Denizli"]
[Date "2024.08.01"]
[Round "4"]
[White "Demirci, Fatih"]
[Black "Sahin, Ata Sarp"]
[Result "0-1"]
[ECO "B51"]
[WhiteElo "1885"]
[BlackElo "1996"]
[Annotator "RC"]
[PlyCount "64"]
[EventDate "2024.08.01"]
[EventType "swiss"]
[EventCountry "TUR"]
[SourceTitle "playchess.com"]
[Source "ChessBase"]
[SourceQuality "1"]
[TimeControl "5400+30"]

1. e4 {[%emt 0:01:00]} c5 {[%emt 0:03:00]} 2. Nf3 {[%emt 0:00:00]} d6 {[%emt 0:00:00]} 3. Bb5+ {[%emt 0:00:00]} Nd7 {[%emt 0:00:00]} 4. a4 {[%emt 0:00:30]} Ngf6 {[%emt 0:00:00]} 5. Nc3 {[%emt 0:00:30]} g6 {[%emt 0:00:00]} 6. a5 {[%emt 0:04:30]} Bg7 {[%emt 0:00:00]} 7. a6 {[%emt 0:01:30]} O-O {[%emt 0:01:00]} 8. O-O {[%emt 0:00:30]} Qb6 {[%emt 0:02:30]} 9. axb7 {[%emt 0:00:30]} Bxb7 {[%emt 0:00:30]} 10. d3 {[%emt 0:02:30]} a6 {[%emt 0:04:30]} 11. Ba4 {[%emt 0:06:30]} Rfd8 {[%emt 0:02:30]} 12. Bb3 {[%emt 0:08:30]} e6 {[%emt 0:02:30]} 13. Bg5 {[%emt 0:05:30]} h6 {[%emt 0:00:30]} 14. Bh4 {[%emt 0:02:30]} g5 {[%emt 0:02:30]} 15. Bg3 {[%emt 0:02:30]} Nh5 {[%emt 0:00:30]} 16. Nd2 {[%emt 0:11:30]} Nxg3 {[%emt 0:00:30]} 17. Nc4 {[%emt 0:00:30]} Qc7 {[%emt 0:01:30]} 18. hxg3 {[%emt 0:00:30]} Ne5 {[%emt 0:03:30]} 19. Na5 {[%emt 0:07:30]} Nc6 {[%emt 0:01:30]} 20. Nxb7 {[%emt 0:01:30]} Qxb7 {[%emt 0:00:00]} 21. Ne2 {[%emt 0:02:30]} d5 {[%emt 0:02:00]} 22. exd5 {[%emt 0:01:30]} exd5 {[%emt 0:00:30]} 23. Qb1 {[%emt 0:05:30]} Nd4 {[%emt 0:01:30]} 24. Nxd4 {[%emt 0:01:30]} Bxd4 {[%emt 0:03:30]} 25. Ra4 {[%emt 0:02:30]} Rd6 {[%emt 0:00:30]} 26. Qa2 {[%emt 0:01:30]} Rb8 {[%emt 0:02:30]} 27. Qa3 {[%emt 0:02:30]} Rf6 {[%emt 0:01:30]} 28. Qa2 {[%emt 0:00:30]} c4 {[%emt 0:03:30]} 29. dxc4 {[%emt 0:03:30]} Bxf2+ {[%emt 0:00:00]} 30. Kh1 {[%emt 0:04:30]} Qc7 {[%emt 0:00:00]} 31. cxd5 {[%emt 0:02:19]} Qxg3 {[%emt 0:00:30]} 32. d6 {[%emt 0:02:36]} Bd4 {[%emt 0:00:30]} 0-1

[Event "Turkish Cup 2024"]
[Site "Denizli"]
[Date "2024.08.01"]
[Round "4"]
[White "Karadag, Eflatun Cem"]
[Black "Bulgurlu, Okan"]
[Result "0-1"]
[ECO "D04"]
[WhiteElo "1883"]
[BlackElo "1964"]
[Annotator "RC"]
[PlyCount "112"]
[EventDate "2024.08.01"]
[EventType "swiss"]
[EventCountry "TUR"]
[SourceTitle "playchess.com"]
[Source "ChessBase"]
[SourceQuality "1"]
[TimeControl "5400+30"]

1. d4 {[%emt 0:01:00]} d5 {[%emt 0:01:00]} 2. Nf3 {[%emt 0:00:30]} Nf6 {[%emt 0:00:30]} 3. e3 {[%emt 0:00:00]} Bf5 {[%emt 0:00:00]} 4. Bd3 {[%emt 0:01:00]} e6 {[%emt 0:00:00]} 5. O-O {[%emt 0:00:30]} Nbd7 {[%emt 0:00:30]} 6. Qe2 {[%emt 0:02:30]} Ne4 {[%emt 0:03:30]} 7. Nbd2 {[%emt 0:01:30]} g5 {[%emt 0:02:30]} 8. Ne1 {[%emt 0:00:30]} g4 {[%emt 0:00:30]} 9. c4 {[%emt 0:02:30]} c6 {[%emt 0:15:30]} 10. cxd5 {[%emt 0:03:30]} cxd5 {[%emt 0:00:30]} 11. Bb5 {[%emt 0:01:30]} Bd6 {[%emt 0:00:30]} 12. Nxe4 {[%emt 0:02:30]} dxe4 {[%emt 0:00:30]} 13. b3 {[%emt 0:02:30]} a6 {[%emt 0:00:30]} 14. Bxd7+ {[%emt 0:00:30]} Kxd7 {[%emt 0:04:30]} 15. Nc2 {[%emt 0:01:30]} Rc8 {[%emt 0:00:30]} 16. Bb2 {[%emt 0:01:30]} Bxh2+ {[%emt 0:09:30]} 17. Kxh2 {[%emt 0:02:30]} Qc7+ {[%emt 0:00:30]} 18. Kg1 {[%emt 0:01:30]} Qxc2 {[%emt 0:00:00]} 19. Rfe1 {[%emt 0:06:30]} g3 {[%emt 0:01:00]} 20. fxg3 {[%emt 0:06:30]} Rhg8 {[%emt 0:00:30]} 21. Rac1 {[%emt 0:01:30]} Qxe2 {[%emt 0:06:30]} 22. Rxe2 {[%emt 0:00:30]} Rxc1+ {[%emt 0:00:30]} 23. Bxc1 {[%emt 0:00:00]} Rxg3 {[%emt 0:00:00]} 24. Kf2 {[%emt 0:00:00]} Rg5 {[%emt 0:01:00]} 25. Rc2 {[%emt 0:04:30]} b6 {[%emt 0:04:30]} 26. a4 {[%emt 0:01:30]} Bg4 {[%emt 0:00:30]} 27. Ke1 {[%emt 0:03:30]} Rh5 {[%emt 0:00:30]} 28. Ba3 {[%emt 0:02:30]} Rh1+ {[%emt 0:00:30]} 29. Kf2 {[%emt 0:04:30]} Rb1 {[%emt 0:00:00]} 30. Rb2 {[%emt 0:23:30]} Rxb2+ {[%emt 0:01:00]} 31. Bxb2 {[%emt 0:00:30]} Bd1 {[%emt 0:00:00]} 32. a5 {[%emt 0:01:30]} bxa5 {[%emt 0:00:00]} 33. Bc3 {[%emt 0:00:30]} Bxb3 {[%emt 0:00:30]} 34. Bxa5 {[%emt 0:00:00]} Kc6 {[%emt 0:00:30]} 35. Bd8 {[%emt 0:01:00]} Kb5 {[%emt 0:00:30]} 36. Ke1 {[%emt 0:02:30]} a5 {[%emt 0:00:30]} 37. Kd2 {[%emt 0:00:00]} a4 {[%emt 0:00:00]} 38. Kc3 {[%emt 0:00:00]} Bc4 {[%emt 0:00:00]} 39. Be7 {[%emt 0:01:30]} h5 {[%emt 0:00:30]} 40. g3 {[%emt 0:00:30]} Bb3 {[%emt 0:00:30]} 41. Bf8 {[%emt 0:00:30]} Kc6 {[%emt 0:00:30]} 42. Be7 {[%emt 0:01:54]} Kd7 {[%emt 0:04:30]} 43. Bf6 {[%emt 0:00:27]} Ke8 {[%emt 0:00:00]} 44. Kb4 {[%emt 0:01:27]} Kf8 {[%emt 0:00:00]} 45. Bd8 {[%emt 0:04:52]} Kg7 {[%emt 0:00:30]} 46. Be7 {[%emt 0:00:34]} Kg6 {[%emt 0:00:00]} 47. Kc3 {[%emt 0:00:00]} Kf5 {[%emt 0:01:00]} 48. Bd6 {[%emt 0:04:50]} Kg4 {[%emt 0:00:00]} 49. Bf4 {[%emt 0:00:59]} Kf3 {[%emt 0:00:00]} 50. Kb4 {[%emt 0:02:15]} f6 {[%emt 0:00:30]} 51. Kc3 {[%emt 0:02:38]} Bd5 {[%emt 0:02:30]} 52. Kb4 {[%emt 0:01:27]} e5 {[%emt 0:01:30]} 53. dxe5 {[%emt 0:00:30]} fxe5 {[%emt 0:00:00]} 54. Bxe5 {[%emt 0:00:22]} Kxe3 {[%emt 0:00:00]} 55. Kc3 {[%emt 0:00:54]} a3 {[%emt 0:00:30]} 56. Kc2 {[%emt 0:00:25]} Ke2 {[%emt 0:00:00]} 0-1

[Event "Turkish Cup 2024"]
[Site "Denizli"]
[Date "2024.08.01"]
[Round "4"]
[White "Kayan, Veli"]
[Black "Sarbak, Omer"]
[Result "0-1"]
[ECO "B34"]
[WhiteElo "1881"]
[BlackElo "1771"]
[Annotator "NA"]
[PlyCount "58"]
[EventDate "2024.08.01"]
[EventType "swiss"]
[EventCountry "TUR"]
[SourceTitle "playchess.com"]
[Source "ChessBase"]
[SourceQuality "1"]
[TimeControl "5400+30"]

1. e4 {[%emt 0:01:00]} c5 {[%emt 0:01:00]} 2. Nf3 {[%emt 0:00:30]} Nc6 {[%emt 0:00:00]} 3. d4 {[%emt 0:00:30]} cxd4 {[%emt 0:00:00]} 4. Nxd4 {[%emt 0:01:30]} g6 {[%emt 0:00:30]} 5. Nc3 {[%emt 0:00:30]} Bg7 {[%emt 0:00:00]} 6. Be3 {[%emt 0:00:00]} Nf6 {[%emt 0:00:00]} 7. Nxc6 {[%emt 0:00:00]} bxc6 {[%emt 0:00:00]} 8. e5 {[%emt 0:00:00]} Ng8 {[%emt 0:00:00]} 9. Bd4 {[%emt 0:00:00]} Qc7 {[%emt 0:12:30]} 10. f4 {[%emt 0:00:30]} Nh6 {[%emt 0:02:30]} 11. Bd3 {[%emt 0:01:30]} O-O {[%emt 0:00:30]} 12. Qe2 {[%emt 0:00:30]} d6 {[%emt 0:05:30]} 13. h3 {[%emt 0:01:30]} Be6 {[%emt 0:19:30]} 14. exd6 {[%emt 0:04:30]} exd6 {[%emt 0:02:30]} 15. Bxg7 {[%emt 0:00:30]} Kxg7 {[%emt 0:00:00]} 16. O-O-O {[%emt 0:00:30]} Rab8 {[%emt 0:02:00]} 17. g4 {[%emt 0:01:30]} Qa5 {[%emt 0:11:30]} 18. Bc4 {[%emt 0:01:30]} Qb4 {[%emt 0:18:30]} 19. Bxe6 {[%emt 0:01:30]} fxe6 {[%emt 0:00:30]} 20. Qxe6 {[%emt 0:03:30]} Qxb2+ {[%emt 0:01:30]} 21. Kd2 {[%emt 0:00:00]} Rxf4 {[%emt 0:00:30]} 22. Qe3 {[%emt 0:15:00]} Rbb4 {[%emt 0:05:25]} 23. Qxa7+ {[%emt 0:01:30]} Nf7 {[%emt 0:00:21]} 24. Ne2 {[%emt 0:00:30]} Rfc4 {[%emt 0:01:26]} 25. Rc1 {[%emt 0:01:30]} Ra4 {[%emt 0:02:04]} 26. Qe7 {[%emt 0:11:30]} Re4 {[%emt 0:02:38]} 27. Qxe4 {[%emt 0:08:30]} Rxe4 {[%emt 0:00:01]} 28. Rb1 {[%emt 0:00:30]} Qe5 {[%emt 0:00:43]} 29. Nc3 {[%emt 0:00:00]} Qd4+ {[%emt 0:00:17]} 0-1

[Event "Turkish Cup 2024"]
[Site "Denizli"]
[Date "2024.08.01"]
[Round "4"]
[White "Acar, Kaan"]
[Black "Ozdemir, Serhan Berat"]
[Result "0-1"]
[ECO "A59"]
[WhiteElo "1863"]
[BlackElo "2194"]
[Annotator "RC"]
[PlyCount "106"]
[EventDate "2024.08.01"]
[EventType "swiss"]
[EventCountry "TUR"]
[SourceTitle "playchess.com"]
[Source "ChessBase"]
[SourceQuality "1"]
[TimeControl "5400+30"]

1. d4 {[%emt 0:01:00]} Nf6 {[%emt 0:08:00]} 2. c4 {[%emt 0:00:00]} c5 {[%emt 0:01:30]} 3. d5 {[%emt 0:01:00]} b5 {[%emt 0:00:30]} 4. cxb5 {[%emt 0:00:00]} a6 {[%emt 0:00:00]} 5. bxa6 {[%emt 0:00:00]} Bxa6 {[%emt 0:01:00]} 6. Nc3 {[%emt 0:00:30]} d6 {[%emt 0:00:00]} 7. e4 {[%emt 0:00:30]} Bxf1 {[%emt 0:00:00]} 8. Kxf1 {[%emt 0:00:30]} g6 {[%emt 0:00:00]} 9. g3 {[%emt 0:00:00]} Bg7 {[%emt 0:00:00]} 10. Kg2 {[%emt 0:00:00]} O-O {[%emt 0:00:00]} 11. f4 {[%emt 0:01:30]} Na6 {[%emt 0:02:00]} 12. Nf3 {[%emt 0:00:30]} Nd7 {[%emt 0:00:30]} 13. Re1 {[%emt 0:00:30]} Nc7 {[%emt 0:00:00]} 14. Qc2 {[%emt 0:03:30]} Ra6 {[%emt 0:01:00]} 15. b3 {[%emt 0:15:30]} Qa8 {[%emt 0:02:30]} 16. Bb2 {[%emt 0:02:30]} Rb8 {[%emt 0:00:30]} 17. Rad1 {[%emt 0:11:30]} Nb6 {[%emt 0:06:30]} 18. a3 {[%emt 0:20:30]} Qb7 {[%emt 0:00:30]} 19. Nd2 {[%emt 0:00:30]} e6 {[%emt 0:00:30]} 20. dxe6 {[%emt 0:00:30]} Nxe6 {[%emt 0:00:30]} 21. Ne2 {[%emt 0:00:00]} Bxb2 {[%emt 0:02:30]} 22. Qxb2 {[%emt 0:00:00]} Rba8 {[%emt 0:00:30]} 23. Qf6 {[%emt 0:05:30]} d5 {[%emt 0:06:30]} 24. f5 {[%emt 0:04:30]} Ng7 {[%emt 0:01:30]} 25. Qh4 {[%emt 0:03:30]} d4 {[%emt 0:06:30]} 26. Kg1 {[%emt 0:02:30]} Nd7 {[%emt 0:07:30]} 27. Nf4 {[%emt 0:02:30]} Re8 {[%emt 0:19:30]} 28. Nd5 {[%emt 0:07:40]} Nh5 {[%emt 0:13:30]} 29. g4 {[%emt 0:02:29]} Nhf6 {[%emt 0:01:30]} 30. Nxf6+ {[%emt 0:01:03]} Nxf6 {[%emt 0:00:30]} 31. e5 {[%emt 0:10:16]} Nd5 {[%emt 0:00:00]} 32. f6 {[%emt 0:00:27]} Nf4 {[%emt 0:01:00]} 33. Re4 {[%emt 0:02:09]} Ne6 {[%emt 0:00:30]} 34. g5 {[%emt 0:00:37]} h5 {[%emt 0:00:00]} 35. gxh6 {[%emt 0:01:17]} Kh7 {[%emt 0:00:00]} 36. Qg4 {[%emt 0:01:05]} Rxa3 {[%emt 0:00:30]} 37. Nc4 {[%emt 0:00:37]} Qxb3 {[%emt 0:03:31]} 38. Nxa3 {[%emt 0:00:33]} Qxa3 {[%emt 0:00:03]} 39. h4 {[%emt 0:00:18]} c4 {[%emt 0:01:56]} 40. Ree1 {[%emt 0:01:49]} Qc5 {[%emt 0:01:03]} 41. Qe4 {[%emt 0:00:27]} d3+ {[%emt 0:00:17]} 42. Kh1 {[%emt 0:00:58]} Kxh6 {[%emt 0:07:01]} 43. Rg1 {[%emt 0:00:43]} Qd4 {[%emt 0:00:18]} 44. Qf3 {[%emt 0:00:30]} Rd8 {[%emt 0:00:58]} 45. Rg4 {[%emt 0:00:24]} Qc5 {[%emt 0:02:24]} 46. h5 {[%emt 0:00:21]} g5 {[%emt 0:00:00]} 47. Qb7 {[%emt 0:00:47]} Nc7 {[%emt 0:03:54]} 48. Qe4 {[%emt 0:00:28]} Qd5 {[%emt 0:01:08]} 49. Qxd5 {[%emt 0:00:31]} Nxd5 {[%emt 0:00:30]} 50. Rxc4 {[%emt 0:00:30]} Ne3 {[%emt 0:00:30]} 51. Rcc1 {[%emt 0:00:30]} d2 {[%emt 0:00:30]} 52. Rc8 {[%emt 0:00:30]} Rxc8 {[%emt 0:00:30]} 53. Rxd2 {[%emt 0:00:30]} Rc1+ {[%emt 0:00:00]} 0-1

[Event "Turkish Cup 2024"]
[Site "Denizli"]
[Date "2024.08.01"]
[Round "4"]
[White "Maras, Huseyin Kayra"]
[Black "Yildiz, Talat"]
[Result "1/2-1/2"]
[ECO "B36"]
[WhiteElo "1860"]
[BlackElo "1956"]
[Annotator "RC"]
[PlyCount "76"]
[EventDate "2024.08.01"]
[EventType "swiss"]
[EventCountry "TUR"]
[SourceTitle "playchess.com"]
[Source "ChessBase"]
[SourceQuality "1"]
[TimeControl "5400+30"]

1. e4 {[%emt 0:01:00]} c5 {[%emt 0:03:00]} 2. Nf3 {[%emt 0:00:00]} Nc6 {[%emt 0:00:30]} 3. d4 {[%emt 0:00:00]} cxd4 {[%emt 0:00:30]} 4. Nxd4 {[%emt 0:00:00]} g6 {[%emt 0:01:30]} 5. c4 {[%emt 0:00:00]} Nf6 {[%emt 0:00:00]} 6. Nc3 {[%emt 0:00:30]} Nxd4 {[%emt 0:00:00]} 7. Qxd4 {[%emt 0:00:30]} d6 {[%emt 0:00:00]} 8. Be3 {[%emt 0:00:00]} Bg7 {[%emt 0:00:00]} 9. f3 {[%emt 0:00:00]} O-O {[%emt 0:00:00]} 10. Qd2 {[%emt 0:00:30]} a5 {[%emt 0:00:00]} 11. Na4 {[%emt 0:00:30]} Nd7 {[%emt 0:12:30]} 12. Rd1 {[%emt 0:02:30]} Qc7 {[%emt 0:12:30]} 13. Nc3 {[%emt 0:06:30]} a4 {[%emt 0:20:30]} 14. Nd5 {[%emt 0:02:30]} Qd8 {[%emt 0:03:30]} 15. Bd4 {[%emt 0:07:30]} Bxd4 {[%emt 0:08:30]} 16. Qxd4 {[%emt 0:00:30]} Nc5 {[%emt 0:01:30]} 17. Be2 {[%emt 0:03:30]} Be6 {[%emt 0:00:30]} 18. h4 {[%emt 0:12:30]} Bxd5 {[%emt 0:01:30]} 19. exd5 {[%emt 0:00:30]} Qa5+ {[%emt 0:01:30]} 20. Qd2 {[%emt 0:01:30]} Rfc8 {[%emt 0:04:30]} 21. Kf2 {[%emt 0:03:30]} Qxd2 {[%emt 0:00:30]} 22. Rxd2 {[%emt 0:00:30]} Nd7 {[%emt 0:01:30]} 23. Rd4 {[%emt 0:06:30]} b5 {[%emt 0:07:34]} 24. h5 {[%emt 0:23:30]} bxc4 {[%emt 0:00:46]} 25. hxg6 {[%emt 0:00:00]} hxg6 {[%emt 0:03:41]} 26. Rxc4 {[%emt 0:07:00]} Rxc4 {[%emt 0:00:56]} 27. Bxc4 {[%emt 0:00:00]} Nb6 {[%emt 0:00:49]} 28. b3 {[%emt 0:03:00]} Nxc4 {[%emt 0:08:18]} 29. bxc4 {[%emt 0:00:00]} Rb8 {[%emt 0:00:15]} 30. Re1 {[%emt 0:00:00]} Kf8 {[%emt 0:02:09]} 31. Ke3 {[%emt 0:01:30]} e5 {[%emt 0:00:47]} 32. dxe6 {[%emt 0:00:36]} fxe6 {[%emt 0:00:10]} 33. Kd3 {[%emt 0:00:24]} Ke7 {[%emt 0:01:15]} 34. Kc3 {[%emt 0:00:30]} a3 {[%emt 0:01:07]} 35. Re2 {[%emt 0:02:32]} Kd7 {[%emt 0:00:16]} 36. Rc2 {[%emt 0:01:23]} Kc6 {[%emt 0:00:23]} 37. Kd3 {[%emt 0:01:40]} Kc5 {[%emt 0:02:53]} 38. Rc3 {[%emt 0:00:55]} Rb2 {[%emt 0:00:38]} 1/2-1/2